bitfinex/quotes_BTCUSD_20260126
["timestamp","ask_amount","ask_price","bid_price","bid_amount"]
[1769404975916,0.00101397,87842.0,87841.0,0.18727361]
[1769404976123,0.00101397,87842.0,87841.0,0.85432447]
[1769404977016,0.00101397,87842.0,87841.0,0.18774082]
[1769404980461,0.02731681,87853.0,87841.0,0.18774082]
[1769404980664,0.04708255,87868.0,87844.0,0.66658365]
[1769404980847,0.02731681,87868.0,87847.0,0.18727361]
[1769404981053,0.69067366,87868.0,87849.0,0.18727361]
[1769404981250,0.66335685,87867.0,87849.0,0.18727361]
[1769404981567,0.66335685,87867.0,87850.0,0.01144643]
[1769404982137,0.66335685,87867.0,87850.0,0.02276607]
[1769404982353,0.67473768,87867.0,87850.0,0.02276607]
[1769404982512,0.66335685,87867.0,87850.0,0.02276607]
[1769404984097,0.66335685,87867.0,87850.0,0.20384093]
[1769404986699,0.72021087,87867.0,87850.0,0.20384093]
[1769404989671,0.66335685,87867.0,87850.0,0.20384093]
[1769404990736,0.66335685,87867.0,87850.0,0.64808782]
[1769404990940,0.66335685,87867.0,87851.0,0.18107486]
[1769404993749,0.02731681,87868.0,87852.0,0.18107486]
[1769404995727,0.02731681,87868.0,87853.0,0.00113742]
[1769404996037,0.63309551,87867.0,87853.0,0.00113742]
[1769404996735,0.02731681,87868.0,87854.0,0.18107486]
[1769404996939,0.02731681,87868.0,87855.0,0.00113739]
[1769404997118,0.02731681,87868.0,87856.0,0.17934514]
[1769404997332,0.02731681,87868.0,87857.0,0.00113736]
[1769404997542,0.02731681,87868.0,87857.0,0.17934514]
[1769404998398,0.01138018,87872.0,87856.0,0.00113737]
[1769404998399,0.02272439,87881.0,87858.0,0.64507249]
[1769404998606,0.12521396,87880.0,87861.0,0.17934514]
[1769404998806,0.01137967,87876.0,87861.0,0.17934514]
[1769404998959,0.01137928,87879.0,87862.0,0.17934514]
[1769404999170,0.62230706,87879.0,87862.0,0.17934514]
[1769404999541,0.01137941,87878.0,87862.0,0.17934514]
[1769404999797,0.62230706,87879.0,87862.0,0.17934514]
[1769405002596,0.61092778,87879.0,87862.0,0.17934514]
[1769405002828,0.05689321,87884.0,87863.0,0.64507249]
[1769405003052,0.11372288,87883.0,87866.0,0.17934514]
[1769405003228,0.11372288,87883.0,87860.0,0.50951745]
[1769405003229,0.11372288,87882.0,87870.0,0.17934514]
[1769405003461,0.01137889,87882.0,87870.0,0.17934514]
[1769405004367,0.01151902,87882.0,87870.0,0.17934514]
[1769405005618,0.00014013,87882.0,87870.0,0.17934514]
[1769405005825,0.00014013,87882.0,87871.0,0.17934514]
[1769405007064,0.00014013,87882.0,87873.0,0.17934514]
[1769405007368,0.00014013,87882.0,87875.0,0.17934514]
[1769405012258,0.01,87875.0,87867.0,0.82441763]
[1769405012461,0.01137915,87880.0,87867.0,0.17934514]
[1769405012669,0.01137941,87878.0,87867.0,0.17934514]
[1769405012873,0.01137954,87877.0,87867.0,0.17934514]
[1769405013339,0.01137967,87876.0,87867.0,0.17934514]
[1769405013571,0.01137954,87877.0,87867.0,0.17934514]
[1769405014065,0.0113798,87875.0,87859.0,0.16723187]
[1769405014252,0.01137993,87874.0,87860.0,0.22048]
[1769405014457,0.01137993,87874.0,87859.0,0.16723187]
[1769405014667,0.01138005,87873.0,87859.0,0.16723187]
[1769405015627,0.01137993,87874.0,87859.0,0.16723187]
[1769405015830,0.01976574,87876.0,87859.0,0.16723187]
[1769405016039,0.01976574,87876.0,87860.0,0.16723187]
[1769405016404,0.01976574,87876.0,87861.0,0.16723187]
[1769405021433,0.60627145,87877.0,87861.0,0.16723187]
[1769405021866,0.01976574,87876.0,87861.0,0.16723187]
[1769405023689,0.01976574,87876.0,87862.0,0.16723187]
[1769405024778,0.03114541,87876.0,87862.0,0.16723187]
[1769405025563,0.70233981,87875.0,87847.0,0.16723187]
[1769405025772,0.23079164,87861.0,87847.0,0.16723187]
[1769405026442,0.23079164,87859.0,87845.0,0.0001866]
[1769405026642,0.01138239,87855.0,87845.0,0.0001866]
[1769405026761,0.24217403,87855.0,87845.0,0.0001866]
[1769405026970,0.23079164,87855.0,87845.0,0.0001866]
[1769405027374,0.17063657,87857.0,87845.0,0.0001866]
[1769405027708,0.24217325,87861.0,87845.0,0.0001866]
[1769405027911,0.24217325,87861.0,87845.0,0.00065381]
[1769405028486,0.23079164,87861.0,87845.0,0.00065381]
[1769405028717,0.23079164,87861.0,87846.0,0.00102827]
[1769405029704,0.23079164,87861.0,87847.0,0.01247013]
[1769405030030,0.23079164,87861.0,87846.0,0.01247013]
[1769405031897,0.24217325,87861.0,87846.0,0.01247013]
[1769405032097,0.01138187,87859.0,87846.0,0.01247013]
[1769405032508,0.24217325,87861.0,87846.0,0.01247013]
[1769405033341,0.011382,87858.0,87846.0,0.01247013]
[1769405034214,0.011382,87858.0,87833.0,0.16742047]
[1769405034215,0.17063657,87856.0,87833.0,0.16742047]
[1769405034417,0.17063657,87852.0,87833.0,0.0001886]
[1769405034620,0.00046721,87856.0,87833.0,0.0001886]
[1769405034621,0.22769894,87844.0,87833.0,0.0001886]
[1769405034866,0.22769894,87843.0,87833.0,0.0001886]
[1769405035327,0.18202038,87844.0,87833.0,0.0001886]
[1769405035602,0.23908327,87840.0,87833.0,0.0001886]
[1769405036244,0.22769894,87840.0,87833.0,0.0001886]
[1769405037689,0.23908327,87840.0,87833.0,0.0001886]
[1769405037840,0.01120929,87839.0,87828.0,0.13748]
[1769405038037,0.22769894,87840.0,87828.0,0.13748]
[1769405038842,0.22769894,87840.0,87822.0,0.16742047]
[1769405040232,0.22769894,87840.0,87823.0,0.16723187]
[1769405041403,0.22769894,87838.0,87822.0,0.0001886]
[1769405041606,0.22769894,87837.0,87822.0,0.0001886]
[1769405044373,0.02504668,87838.0,87822.0,0.17083385]
[1769405044543,0.22769894,87844.0,87826.0,0.17064525]
[1769405044728,0.0414973,87843.0,87823.0,0.64139206]
[1769405044924,0.0414973,87843.0,87825.0,0.64139206]
[1769405045135,0.0414973,87843.0,87827.0,0.17064525]
[1769405045529,0.011382,87858.0,87843.0,0.01]
[1769405045714,0.01138239,87855.0,87843.0,0.01]
[1769405045896,0.22769894,87855.0,87843.0,0.01]
[1769405046092,0.23908133,87855.0,87838.0,0.17064525]
[1769405046298,0.01138303,87850.0,87838.0,0.17064525]
[1769405046492,0.02845792,87849.0,87822.0,0.0001886]
[1769405046775,0.22769894,87843.0,87824.0,0.17064525]
[1769405046976,0.02731681,87849.0,87825.0,0.02277255]
[1769405047113,0.15995726,87859.0,87832.0,0.17064525]
[1769405047312,0.15995726,87859.0,87835.0,0.64139206]
[1769405047516,0.15995726,87859.0,87838.0,0.17064525]
[1769405047717,0.15995726,87859.0,87840.0,0.81203731]
[1769405048154,0.15995726,87859.0,87840.0,0.64139206]
[1769405048385,0.17133913,87859.0,87841.0,0.17064525]
[1769405048956,0.011382,87858.0,87841.0,0.17064525]
[1769405049161,0.15995726,87859.0,87841.0,0.17064525]
[1769405049364,0.02731681,87860.0,87843.0,0.17064525]
[1769405049702,0.02731681,87860.0,87845.0,0.17064525]
[1769405049902,0.02731681,87860.0,87846.0,0.0221558]
[1769405050737,0.00377569,87859.0,87845.0,0.17064525]
[1769405050879,0.00377569,87859.0,87840.0,0.17064525]
[1769405051086,0.15995726,87855.0,87823.0,0.17064525]
[1769405051375,0.00227699,87851.0,87825.0,0.17064525]
[1769405051573,0.01138355,87846.0,87828.0,0.17064525]
[1769405051745,0.01138368,87845.0,87829.0,0.02277151]
[1769405052136,0.00227699,87838.0,87822.0,0.0001886]
[1769405052345,0.01138472,87837.0,87822.0,0.0001886]
[1769405052550,0.00227699,87838.0,87822.0,0.0001886]
[1769405054923,0.01138498,87835.0,87822.0,0.0001886]
[1769405055177,0.01138485,87836.0,87822.0,0.0001886]
[1769405055423,0.01366158,87838.0,87822.0,0.0001886]
[1769405055424,0.00227699,87838.0,87822.0,0.0001886]
[1769405055642,0.01138472,87837.0,87822.0,0.0001886]
[1769405058121,0.00227699,87838.0,87822.0,0.0001886]
[1769405059094,0.05920003,87838.0,87822.0,0.0001886]
[1769405059818,0.01138498,87835.0,87822.0,0.0001886]
[1769405060177,0.05920003,87838.0,87822.0,0.0001886]
[1769405061404,0.00377569,87837.0,87822.0,0.0001886]
[1769405062627,0.00605268,87837.0,87822.0,0.0001886]
[1769405064265,0.00377569,87837.0,87822.0,0.15751756]
[1769405064482,0.01138459,87838.0,87823.0,0.65324905]
[1769405064692,0.00377569,87837.0,87823.0,0.65324905]
[1769405066494,0.15995726,87840.0,87824.0,0.82351069]
[1769405066693,0.00605268,87843.0,87825.0,0.15732896]
[1769405066898,0.11366637,87842.0,87826.0,0.17026135]
[1769405067106,0.11366637,87841.0,87826.0,0.17026135]
[1769405067279,0.00605268,87843.0,87826.0,0.17026135]
[1769405067498,0.11366606,87842.0,87826.0,0.17026135]
[1769405067699,0.11366606,87841.0,87826.0,0.17026135]
[1769405068042,0.00605268,87843.0,87826.0,0.17026135]
[1769405068179,0.11366602,87842.0,87826.0,0.17026135]
[1769405068377,0.12505022,87841.0,87826.0,0.17026135]
[1769405068583,0.01516002,87840.0,87826.0,0.17026135]
[1769405068784,0.00227699,87839.0,87826.0,0.15732896]
[1769405068989,0.00377569,87838.0,87826.0,0.15732896]
[1769405070581,0.01516028,87838.0,87826.0,0.15732896]
[1769405072709,0.00377569,87838.0,87826.0,0.15732896]
[1769405077594,0.01138472,87837.0,87826.0,0.15732896]
[1769405077792,0.00377569,87836.0,87826.0,0.15732896]
[1769405079196,0.00377569,87837.0,87826.0,0.15732896]
[1769405079768,0.00377569,87837.0,87827.0,0.01606486]
[1769405079973,0.17057148,87842.0,87827.0,0.01606486]
[1769405080178,0.11370134,87841.0,87827.0,0.01606486]
[1769405080355,0.11370134,87840.0,87827.0,0.01606486]
[1769405080559,0.17057148,87842.0,87827.0,0.01606486]
[1769405080756,0.11374683,87841.0,87827.0,0.01606486]
[1769405080956,0.11374683,87840.0,87827.0,0.01606486]
[1769405081160,0.17057148,87842.0,87827.0,0.01606486]
[1769405081365,0.11374797,87841.0,87827.0,0.02277204]
[1769405081565,0.11374797,87840.0,87826.0,0.63478326]
[1769405081740,0.11374797,87839.0,87827.0,0.17269225]
[1769405081941,0.11374797,87838.0,87827.0,0.17269225]
[1769405082140,0.01743649,87844.0,87827.0,0.17269225]
[1769405082366,0.12524042,87843.0,87827.0,0.17269225]
[1769405082669,0.11385648,87842.0,87828.0,0.63478326]
[1769405082838,0.11385648,87841.0,87829.0,0.02277152]
[1769405083055,0.11385648,87840.0,87829.0,0.02277152]
[1769405083254,0.11385648,87839.0,87829.0,0.02277152]
[1769405083503,0.11385648,87838.0,87829.0,0.02277152]
[1769405083666,0.01743649,87844.0,87829.0,0.02277152]
[1769405084023,0.11386665,87843.0,87829.0,0.02277152]
[1769405084194,0.11386665,87842.0,87829.0,0.02277152]
[1769405084386,0.11386665,87841.0,87829.0,0.02277152]
[1769405084582,0.0151595,87844.0,87832.0,0.63478326]
[1769405084782,0.0151595,87844.0,87835.0,0.15098763]
[1769405084986,0.01138381,87844.0,87835.0,0.15098763]
[1769405086923,0.04247618,87845.0,87835.0,0.15098763]
[1769405086924,0.0310925,87845.0,87835.0,0.15098763]
[1769405087086,0.02731681,87845.0,87835.0,0.15098763]
[1769405088025,0.05691862,87845.0,87835.0,0.15098763]
[1769405088606,0.01138355,87846.0,87835.0,0.15098763]
[1769405088809,0.01138368,87845.0,87835.0,0.15098763]
[1769405089407,0.01138368,87845.0,87835.0,0.15283145]
[1769405089607,0.01138368,87845.0,87835.0,0.63478326]
[1769405089949,0.02731681,87846.0,87836.0,0.15283145]
[1769405091932,0.00046721,87856.0,87836.0,0.15283145]
[1769405092133,0.00046721,87856.0,87840.0,0.15283145]
[1769405092292,0.00046721,87856.0,87842.0,0.63478326]
[1769405092493,0.00046721,87856.0,87843.0,0.15283145]
[1769405092733,0.0113829,87851.0,87843.0,0.15283145]
[1769405093133,0.01138278,87852.0,87843.0,0.15283145]
[1769405093293,0.0113829,87851.0,87843.0,0.15283145]
[1769405093496,0.01138265,87853.0,87843.0,0.63478326]
[1769405093696,0.01138265,87853.0,87844.0,0.15283145]
[1769405094161,0.00046721,87856.0,87844.0,0.15283145]
[1769405094400,0.12682687,87855.0,87838.0,0.15283145]
[1769405094597,0.01407612,87855.0,87838.0,0.15283145]
[1769405094797,0.01138342,87847.0,87841.0,0.63478326]
[1769405094973,0.01138342,87847.0,87843.0,0.15283145]
[1769405095177,0.01138355,87846.0,87843.0,0.15283145]
[1769405096853,0.01138355,87846.0,87836.0,0.63478326]
[1769405096854,0.01138355,87846.0,87837.0,0.15283145]
[1769405098769,0.01138355,87846.0,87838.0,0.15283145]
[1769405099170,0.01138342,87847.0,87838.0,0.15283145]
[1769405100080,0.01138342,87847.0,87839.0,0.15283145]
[1769405100811,0.00046721,87856.0,87840.0,0.63478326]
[1769405101020,0.0569126,87854.0,87841.0,0.63478326]
[1769405101173,0.11377312,87853.0,87842.0,0.15275339]
[1769405101584,0.11377312,87853.0,87843.0,0.15275339]
[1769405101799,0.05713593,87859.0,87824.0,0.0114856]
[1769405101800,0.02731681,87864.0,87854.0,0.63478326]
[1769405102055,0.02738591,87864.0,87857.0,0.62794204]
[1769405102235,0.02738591,87864.0,87858.0,0.15275339]
[1769405102438,0.03876713,87864.0,87858.0,0.15275339]
[1769405102668,0.01138174,87860.0,87835.0,0.17496]
[1769405102839,0.01138252,87854.0,87837.0,0.15275339]
[1769405103046,0.01138265,87853.0,87837.0,0.15275339]
[1769405103353,0.01138265,87853.0,87839.0,0.16555349]
[1769405103910,0.01138265,87853.0,87839.0,0.63497451]
[1769405104111,0.01138265,87853.0,87840.0,0.16555349]
[1769405104315,0.01138265,87853.0,87841.0,0.16555349]
[1769405104933,0.11952356,87857.0,87841.0,0.16555349]
[1769405105343,0.01138316,87849.0,87842.0,0.0182944]
[1769405105588,0.01138316,87849.0,87841.0,0.16555349]
[1769405105790,0.01138278,87852.0,87841.0,0.16555349]
[1769405106305,0.06829537,87854.0,87841.0,0.16555349]
[1769405106888,0.01138252,87854.0,87841.0,0.16555349]
[1769405108875,0.13090569,87857.0,87842.0,0.01869577]
[1769405109092,0.01138213,87857.0,87844.0,0.16555349]
[1769405109553,0.01138174,87860.0,87846.0,0.63497451]
[1769405109756,0.02731681,87866.0,87849.0,0.16555349]
[1769405109918,0.02731681,87866.0,87849.0,0.16562259]
[1769405110296,0.01138213,87857.0,87849.0,0.16562259]
[1769405110519,0.011382,87858.0,87849.0,0.16562259]
[1769405110928,0.011382,87858.0,87851.0,0.16555349]
[1769405114190,0.01138213,87857.0,87851.0,0.16555349]
[1769405114371,0.011382,87858.0,87851.0,0.16555349]
[1769405116819,0.01138148,87862.0,87852.0,0.15979968]
[1769405117044,0.02731681,87866.0,87853.0,0.63207775]
[1769405117245,0.05690601,87865.0,87854.0,0.15979968]
[1769405118272,0.0569063,87864.0,87854.0,0.15979968]
[1769405118443,0.02831681,87866.0,87854.0,0.15979968]
[1769405119669,0.02731681,87866.0,87854.0,0.15979968]
[1769405120031,0.001,87865.0,87854.0,0.15979968]
[1769405120444,0.02731681,87866.0,87854.0,0.15979968]
[1769405120878,0.02931681,87866.0,87854.0,0.15979968]
[1769405121397,0.11371773,87865.0,87854.0,0.15979968]
[1769405121581,0.02931681,87866.0,87854.0,0.15979968]
[1769405121773,0.11371773,87865.0,87854.0,0.15979968]
[1769405121977,0.02931681,87866.0,87854.0,0.15979968]
[1769405122220,0.11371773,87865.0,87854.0,0.15979968]
[1769405122400,0.02931681,87866.0,87854.0,0.15979968]
[1769405122401,0.01442298,87864.0,87854.0,0.15979968]
[1769405122606,0.03051204,87866.0,87854.0,0.15979968]
[1769405122810,0.1137221,87865.0,87854.0,0.15979968]
[1769405123169,0.001,87865.0,87854.0,0.15979968]
[1769405123505,0.02851204,87866.0,87854.0,0.15979968]
[1769405123710,0.11373041,87865.0,87854.0,0.15979968]
[1769405123912,0.011382,87858.0,87854.0,0.15979968]
[1769405124140,0.01138213,87857.0,87854.0,0.15979968]
[1769405124781,0.01138213,87857.0,87849.0,6.91e-05]
[1769405124782,0.02731681,87881.0,87857.0,0.16979968]
[1769405125012,0.64526611,87866.0,87857.0,0.16979968]
[1769405125211,0.64526611,87866.0,87857.0,0.01]
[1769405125415,0.64526611,87866.0,87850.0,0.15979968]
[1769405125966,0.05691392,87852.0,87850.0,0.15979968]
[1769405126125,0.05691392,87852.0,87849.0,6.91e-05]
[1769405126126,0.0682967,87852.0,87849.0,6.91e-05]
[1769405126516,0.01138407,87842.0,87834.0,0.0001628]
[1769405126717,0.0113842,87841.0,87834.0,0.0001628]
[1769405127104,0.01144779,87842.0,87834.0,0.0001628]
[1769405127333,6.372e-05,87842.0,87834.0,0.0001628]
[1769405127954,0.01144779,87842.0,87834.0,0.0001628]
[1769405128155,6.372e-05,87842.0,87834.0,0.0001628]
[1769405128364,6.372e-05,87842.0,87833.0,0.15567452]
[1769405128365,6.372e-05,87842.0,87833.0,0.15585032]
[1769405128775,6.372e-05,87842.0,87834.0,0.63207775]
[1769405128973,6.372e-05,87842.0,87834.0,0.78775227]
[1769405129820,6.372e-05,87842.0,87836.0,0.15567452]
[1769405130013,6.372e-05,87842.0,87838.0,0.15567452]
[1769405130218,6.372e-05,87842.0,87838.0,0.1555184]
[1769405135284,6.372e-05,87842.0,87833.0,0.15638857]
[1769405137783,0.0113842,87841.0,87833.0,0.15638857]
[1769405137977,0.01138433,87840.0,87833.0,0.15638857]
[1769405138771,0.01138446,87839.0,87833.0,0.15638857]
[1769405138965,0.01138433,87840.0,87833.0,0.15638857]
[1769405139372,0.0113842,87841.0,87833.0,0.15638857]
[1769405140948,0.0113842,87841.0,87833.0,0.61608776]
[1769405141732,0.0113842,87841.0,87833.0,0.0001758]
[1769405143378,0.0113842,87841.0,87833.0,1.971e-05]
[1769405143944,6.372e-05,87842.0,87833.0,1.971e-05]
[1769405144147,6.372e-05,87842.0,87833.0,0.02279019]
[1769405144474,0.5658,87855.0,87836.0,0.61643407]
[1769405144800,0.11375942,87854.0,87837.0,0.02263304]
[1769405145003,0.58794647,87855.0,87837.0,0.02263304]
[1769405145213,0.01138329,87848.0,87837.0,0.02263304]
[1769405145643,0.01138329,87848.0,87837.0,0.18677513]
[1769405147539,0.05691325,87853.0,87837.0,0.18677513]
[1769405147773,0.58794647,87855.0,87837.0,0.18677513]
[1769405147955,0.7017161,87854.0,87837.0,0.18677513]
[1769405148245,0.11376963,87853.0,87837.0,0.18677513]
[1769405148466,0.58794647,87854.0,87837.0,0.18677513]
[1769405148667,0.78760017,87853.0,87837.0,0.18677513]
[1769405148867,0.67382186,87853.0,87837.0,0.18677513]
[1769405150498,0.2427491,87853.0,87837.0,0.18677513]
[1769405150689,0.58794647,87852.0,87837.0,0.18677513]
[1769405151463,0.00029257,87851.0,87837.0,0.18646302]
[1769405151634,0.00044862,87851.0,87837.0,0.18646302]
[1769405152827,0.01138381,87844.0,87837.0,0.18646302]
[1769405153026,0.0113829,87851.0,87837.0,0.18646302]
[1769405153198,0.05691519,87850.0,87837.0,0.18646302]
[1769405153416,0.05691519,87850.0,87839.0,0.14864081]
[1769405153609,0.05691519,87850.0,87839.0,0.17051272]
[1769405154490,0.0113829,87851.0,87839.0,0.17051272]
[1769405154689,0.0113829,87851.0,87841.0,0.14864081]
[1769405154933,0.0113829,87851.0,87841.0,0.74296647]
[1769405155191,0.11392233,87850.0,87841.0,0.74296647]
[1769405155365,0.0113829,87851.0,87841.0,0.74296647]
[1769405155567,0.11392233,87850.0,87841.0,0.74296647]
[1769405155830,0.0113829,87851.0,87841.0,0.14864081]
[1769405156042,0.01138316,87849.0,87841.0,0.14864081]
[1769405157287,0.01138303,87850.0,87841.0,0.14864081]
[1769405157491,0.11397352,87849.0,87841.0,0.14864081]
[1769405157703,0.00044862,87857.0,87841.0,0.14864081]
[1769405157986,0.0001641,87858.0,87839.0,0.50973491]
[1769405158227,0.0001641,87858.0,87843.0,0.14864081]
[1769405158505,0.0001641,87858.0,87847.0,0.14864081]
[1769405158732,0.0001641,87858.0,87850.0,0.59432566]
[1769405158934,0.01138213,87857.0,87851.0,0.14848479]
[1769405159260,0.0115461,87858.0,87851.0,0.59432566]
[1769405159825,0.0001641,87858.0,87851.0,0.59432566]
[1769405160001,0.001,87857.0,87851.0,0.59432566]
[1769405160229,0.001,87857.0,87854.0,0.14864081]
[1769405160430,0.0001641,87858.0,87855.0,0.14864081]
[1769405161217,0.0001641,87877.0,87855.0,0.14864081]
[1769405161435,0.61651222,87876.0,87846.0,0.59432566]
[1769405161611,0.61651222,87876.0,87843.0,0.0001641]
[1769405161612,0.00044862,87875.0,87850.0,0.59432566]
[1769405161971,0.00044862,87875.0,87854.0,0.59432566]
[1769405162167,0.00044862,87875.0,87857.0,0.14864081]
[1769405163002,0.61385292,87874.0,87857.0,0.14864081]
[1769405163164,0.15320851,87877.0,87857.0,0.14864081]
[1769405163165,0.61385292,87872.0,87857.0,0.14864081]
[1769405163359,0.00044862,87871.0,87857.0,0.14864081]
[1769405163590,0.01138122,87864.0,87857.0,0.14864081]
[1769405164388,0.01138096,87866.0,87857.0,0.14864081]
[1769405166111,0.00044862,87865.0,87857.0,0.14864081]
[1769405166525,0.01138096,87866.0,87857.0,0.14864081]
[1769405166930,0.05735411,87865.0,87857.0,0.14864081]
[1769405167971,0.00044862,87865.0,87857.0,0.14864081]
[1769405168187,0.56652487,90004.0,87859.0,0.16363728]
[1769405168188,0.74571855,87877.0,87859.0,0.16363728]
[1769405168396,0.00044862,87876.0,87861.0,0.16363728]
[1769405169017,0.17496,87879.0,87864.0,0.62600715]
[1769405169221,0.17540862,87879.0,87864.0,0.78964443]
[1769405169394,0.74571855,87879.0,87864.0,0.16363728]
[1769405169604,0.09305495,87878.0,87864.0,0.16363728]
[1769405169807,0.00044862,87878.0,87864.0,0.16363728]
[1769405170024,0.01138057,87869.0,87864.0,0.16363728]
[1769405170182,0.01152064,87869.0,87864.0,0.16363728]
[1769405170612,0.00014007,87869.0,87864.0,0.16363728]
[1769405171494,0.02731681,87881.0,87864.0,0.76133251]
[1769405171734,0.57030993,87879.0,87864.0,0.76133251]
[1769405172148,0.05689959,87875.0,87864.0,0.76133251]
[1769405172713,0.01138018,87872.0,87865.0,0.16256201]
[1769405173957,0.001,87875.0,87865.0,0.16256201]
[1769405174113,0.60245689,87880.0,87865.0,0.16256201]
[1769405174454,0.05689895,87876.0,87865.0,0.16256201]
[1769405174610,0.01138018,87872.0,87865.0,0.16256201]
[1769405175430,0.01137967,87876.0,87865.0,0.16256201]
[1769405176036,0.00044862,87879.0,87865.0,0.16256201]
[1769405176605,0.60290551,87879.0,87865.0,0.16256201]
[1769405176826,0.60290551,87879.0,87846.0,0.0002346]
[1769405176827,0.15989749,87864.0,87842.0,0.5786118]
[1769405177070,0.14941674,87862.0,87843.0,0.58983753]
[1769405177279,0.01763536,87861.0,87843.0,0.58983753]
[1769405177563,0.01138252,87854.0,87843.0,0.58983753]
[1769405177743,0.01138239,87855.0,87843.0,0.58983753]
[1769405178334,0.01138213,87857.0,87843.0,0.58983753]
[1769405178533,0.01138174,87860.0,87844.0,0.58983753]
[1769405178769,0.01138174,87860.0,87845.0,0.58983753]
[1769405179296,0.01863536,87861.0,87845.0,0.58983753]
[1769405179521,0.01763536,87861.0,87846.0,0.58983753]
[1769405180265,0.01763536,87861.0,87848.0,0.58983753]
[1769405180466,0.01763536,87861.0,87850.0,0.58983753]
[1769405180641,0.01763536,87861.0,87851.0,0.00104427]
[1769405180855,0.01763536,87861.0,87851.0,0.01722749]
[1769405181451,0.01138187,87859.0,87851.0,0.01722749]
[1769405181782,0.01138148,87862.0,87852.0,0.77138999]
[1769405182105,0.01138148,87862.0,87852.0,0.58983753]
[1769405182311,0.01138148,87862.0,87847.0,0.74869739]
[1769405182441,0.01763536,87861.0,87847.0,0.74869739]
[1769405182648,0.01763536,87863.0,87847.0,0.74869739]
[1769405183451,0.01763536,87863.0,87848.0,0.02269364]
[1769405183672,0.001,87862.0,87848.0,0.02269364]
[1769405183875,0.17229297,87868.0,87848.0,0.02269364]
[1769405184077,0.17229297,87867.0,87848.0,0.02269364]
[1769405184388,0.32170971,87866.0,87848.0,0.02269364]
[1769405184838,0.14941674,87874.0,87851.0,0.58983753]
[1769405185028,0.01138057,87869.0,87855.0,0.58983753]
[1769405185281,0.01138057,87869.0,87856.0,0.0164259]
[1769405185441,0.0113807,87868.0,87851.0,0.01757146]
[1769405185640,0.0113807,87868.0,87845.0,0.58983753]
[1769405185641,0.01138083,87867.0,87845.0,0.58983753]
[1769405185824,0.01138083,87867.0,87849.0,0.15885986]
[1769405186166,0.01138083,87867.0,87853.0,0.15885986]
[1769405186362,0.01138083,87867.0,87854.0,0.6074091]
[1769405186569,0.01138083,87867.0,87854.0,0.58983753]
[1769405186932,0.0113807,87868.0,87854.0,0.58983753]
[1769405187129,0.0113807,87868.0,87854.0,0.74869739]
[1769405187325,0.0113807,87868.0,87855.0,0.61369153]
[1769405187526,0.0113807,87868.0,87856.0,0.01939012]
[1769405187733,0.17673355,87882.0,87855.0,0.023854]
[1769405187939,0.17673355,87882.0,87857.0,0.15885986]
[1769405188139,0.05690159,87871.0,87859.0,0.74869739]
[1769405188475,0.01138057,87869.0,87859.0,0.76634069]
[1769405188636,0.01138057,87869.0,87859.0,0.74869739]
[1769405189249,0.0113807,87868.0,87859.0,0.74869739]
[1769405189470,0.0113807,87868.0,87846.0,0.04556]
[1769405189743,0.0113807,87868.0,87851.0,0.58983753]
[1769405190064,0.60765959,87873.0,87853.0,0.58983753]
[1769405190267,0.60765959,87871.0,87834.0,0.0001995]
[1769405190404,0.01138213,87857.0,87843.0,0.74869739]
[1769405190606,0.01138239,87855.0,87843.0,0.74869739]
[1769405190812,0.011382,87858.0,87844.0,0.58983753]
[1769405191061,0.011382,87858.0,87845.0,0.60743954]
[1769405191274,0.011382,87858.0,87845.0,0.58983753]
[1769405191481,0.01138161,87861.0,87846.0,0.01760181]
[1769405192741,0.01138161,87861.0,87846.0,0.60743934]
[1769405192948,0.01138161,87861.0,87846.0,0.58983753]
[1769405193161,0.01138161,87861.0,87847.0,0.01760174]
[1769405193744,0.11945437,87863.0,87846.0,0.58983753]
[1769405193948,0.11945437,87861.0,87838.0,0.58136662]
[1769405194242,0.26985297,87859.0,87842.0,0.03866641]
[1769405194413,0.26985297,87859.0,87842.0,0.62003303]
[1769405194610,0.26985297,87859.0,87842.0,0.6035687]
[1769405195230,0.26985297,87859.0,87842.0,0.58150669]
[1769405196431,0.1503986,87859.0,87842.0,0.00014007]
[1769405196637,0.1503986,87859.0,87843.0,0.73175632]
[1769405199384,0.1503986,87859.0,87843.0,0.1503897]
[1769405199594,0.11945437,87864.0,87844.0,0.59784253]
[1769405199804,0.11945437,87864.0,87844.0,0.73175632]
[1769405200005,0.1503986,87863.0,87844.0,0.73175632]
[1769405200332,0.01138174,87860.0,87844.0,0.73175632]
[1769405200534,0.01138187,87859.0,87844.0,0.73175632]
[1769405201477,0.01138187,87859.0,87845.0,0.58136662]
[1769405202426,0.08117855,87864.0,87845.0,0.73175632]
[1769405205104,0.08217855,87864.0,87845.0,0.73175632]
[1769405205536,0.08217855,87864.0,87846.0,0.1503897]
[1769405206387,0.08117855,87864.0,87847.0,0.02276685]
[1769405206580,0.08117855,87864.0,87847.0,0.58136662]
[1769405206785,0.08217855,87864.0,87848.0,0.17315629]
[1769405207203,0.08117855,87864.0,87848.0,0.17315629]
[1769405207669,0.13808468,87864.0,87848.0,0.17315629]
[1769405207871,0.01138135,87863.0,87849.0,0.58136662]
[1769405208081,0.01138122,87864.0,87850.0,0.02276607]
[1769405208275,0.01138135,87863.0,87850.0,0.02276607]
[1769405208507,0.01138135,87863.0,87852.0,0.1503897]
[1769405208716,0.01138135,87863.0,87853.0,0.02276529]
[1769405209292,0.01138122,87864.0,87853.0,0.02276529]
[1769405210346,0.01138096,87866.0,87853.0,0.02276529]
[1769405210924,0.1503986,87875.0,87855.0,0.73175632]
[1769405211099,0.11390549,87874.0,87856.0,0.1503897]
[1769405211316,0.11390549,87873.0,87856.0,0.1503897]
[1769405211518,0.11390549,87872.0,87856.0,0.1503897]
[1769405211788,0.0815613,87874.0,87845.0,0.58136662]
[1769405211918,0.11390235,87873.0,87847.0,0.58136662]
[1769405212285,0.0815613,87874.0,87852.0,0.1503897]
[1769405212493,0.01138044,87870.0,87855.0,0.58136662]
[1769405212694,0.01138057,87869.0,87857.0,0.1503897]
[1769405213079,0.01138005,87873.0,87857.0,0.1503897]
[1769405213279,0.11389258,87872.0,87857.0,0.1503897]
[1769405213497,0.01138005,87873.0,87857.0,0.1503897]
[1769405213698,0.11389258,87872.0,87857.0,0.1503897]
[1769405213901,0.01138005,87873.0,87857.0,0.1503897]
[1769405214119,0.11389258,87872.0,87857.0,0.1503897]
[1769405214329,0.01138005,87873.0,87858.0,0.58136662]
[1769405214533,0.01138031,87871.0,87859.0,0.1503897]
[1769405215483,0.01138005,87873.0,87859.0,0.1503897]
[1769405215618,0.0113798,87875.0,87861.0,0.1503897]
[1769405215827,0.001,87873.0,87862.0,0.1503897]
[1769405216172,0.001,87873.0,87863.0,0.1503897]
[1769405216303,0.01138005,87873.0,87863.0,0.1503897]
[1769405216509,0.0113798,87875.0,87863.0,0.1503897]
[1769405216708,0.01157917,87876.0,87850.0,0.50962909]
[1769405216709,0.0001995,87876.0,87850.0,0.50962909]
[1769405216910,0.0001995,87876.0,87864.0,0.58136662]
[1769405217098,0.0001995,87876.0,87867.0,0.1503897]
[1769405217294,0.0001995,87876.0,87869.0,0.58136662]
[1769405217539,0.0001995,87876.0,87870.0,0.73175632]